[Event "Early Titled Tuesday Blitz | February 8 2022"]
[White "Ashiev, Eduard"]
[Black "Martinez Lopez, David"]
[WhiteFideId "4130090"]
[BlackFideId "22235779"]
[WhiteElo "2004"]
[BlackElo "2369"]
[Result "0-1"]
[Round "08"]
[TimeControl "180+1"]
[Date "2022.02.08"]
[WhiteClock "0:00:17"]
[BlackClock "0:00:17"]

1. d4 {[%clk 0:02:54]}  Nf6 {[%clk 0:02:59]} 2. Nf3 {[%clk 0:02:52]}  g6 {[%clk 0:02:59]} 3. c4 {[%clk 0:02:52]}  Bg7 {[%clk 0:02:59]} 4. Nc3 {[%clk 0:02:52]}  O-O {[%clk 0:03:00]} 5. e4 {[%clk 0:02:53]}  d6 {[%clk 0:03:00]} 6. h3 {[%clk 0:02:53]}  e5 {[%clk 0:02:59]} 7. d5 {[%clk 0:02:53]}  a5 {[%clk 0:02:57]} 8. Bg5 {[%clk 0:02:53]}  h6 {[%clk 0:02:54]} 9. Be3 {[%clk 0:02:52]}  Na6 {[%clk 0:02:53]} 10. Nd2 {[%clk 0:02:52]}  Nc5 {[%clk 0:02:52]} 11. a3 {[%clk 0:02:52]}  a4 {[%clk 0:01:50]} 12. Bxc5 {[%clk 0:02:49]}  dxc5 {[%clk 0:01:51]} 13. Nxa4 {[%clk 0:02:49]}  b6 {[%clk 0:01:52]} 14. Nc3 {[%clk 0:02:49]}  Ne8 {[%clk 0:01:51]} 15. Be2 {[%clk 0:02:48]}  Nd6 {[%clk 0:01:51]} 16. O-O {[%clk 0:02:48]}  h5 {[%clk 0:01:46]} 17. Nb5 {[%clk 0:02:34]}  Bh6 {[%clk 0:01:41]} 18. Nxd6 {[%clk 0:02:30]}  cxd6 {[%clk 0:01:42]} 19. Nb1 {[%clk 0:02:27]}  f5 {[%clk 0:01:27]} 20. exf5 {[%clk 0:02:24]}  Bxf5 {[%clk 0:01:28]} 21. Nc3 {[%clk 0:02:23]}  e4 {[%clk 0:01:23]} 22. Qe1 {[%clk 0:01:52]}  Bf4 {[%clk 0:00:52]} 23. Nd1 {[%clk 0:01:36]}  Qg5 {[%clk 0:00:45]} 24. Kh1 {[%clk 0:01:16]}  Rae8 {[%clk 0:00:44]} 25. Rc1 {[%clk 0:00:34]}  Bxc1 {[%clk 0:00:43]} 26. Nc3 {[%clk 0:00:28]}  Bd2 {[%clk 0:00:38]} 27. Qd1 {[%clk 0:00:27]}  Bd7 {[%clk 0:00:19]} 28. f4 {[%clk 0:00:21]}  Bxf4 {[%clk 0:00:18]} 29. Qc2 {[%clk 0:00:17]}  Qg3 {[%clk 0:00:17]} 0-1


[Site "https://www.chess.com"]

[Event "Early Titled Tuesday Blitz | February 8 2022"]
[White "Avazkhonov, Alikhon"]
[Black "Shukhman, Anna"]
[WhiteFideId "14208504"]
[BlackFideId "54180058"]
[WhiteElo "1739"]
[BlackElo "1628"]
[Result "0-1"]
[Round "08"]
[TimeControl "180+1"]
[Date "2022.02.08"]
[WhiteClock "0:00:15"]
[BlackClock "0:00:41"]

1. f4 {[%clk 0:03:00]}  d5 {[%clk 0:02:48]} 2. Nf3 {[%clk 0:02:59]}  c5 {[%clk 0:02:46]} 3. g3 {[%clk 0:03:00]}  Nc6 {[%clk 0:02:46]} 4. Bg2 {[%clk 0:03:00]}  g6 {[%clk 0:02:46]} 5. O-O {[%clk 0:03:00]}  Bg7 {[%clk 0:02:47]} 6. d3 {[%clk 0:03:01]}  e6 {[%clk 0:02:43]} 7. e4 {[%clk 0:02:53]}  Nge7 {[%clk 0:02:36]} 8. c3 {[%clk 0:02:45]}  O-O {[%clk 0:02:31]} 9. e5 {[%clk 0:02:42]}  f6 {[%clk 0:02:19]} 10. d4 {[%clk 0:02:38]}  fxe5 {[%clk 0:02:18]} 11. fxe5 {[%clk 0:02:34]}  Nf5 {[%clk 0:02:01]} 12. dxc5 {[%clk 0:01:19]}  Nxe5 {[%clk 0:01:52]} 13. Nxe5 {[%clk 0:01:19]}  Bxe5 {[%clk 0:01:51]} 14. Qe2 {[%clk 0:01:18]}  Bg7 {[%clk 0:01:37]} 15. Nd2 {[%clk 0:01:15]}  Qe7 {[%clk 0:01:15]} 16. Nb3 {[%clk 0:01:09]}  a5 {[%clk 0:01:14]} 17. a4 {[%clk 0:01:07]}  b6 {[%clk 0:01:11]} 18. cxb6 {[%clk 0:01:01]}  Ba6 {[%clk 0:01:09]} 19. Qe1 {[%clk 0:00:44]}  Bxf1 {[%clk 0:01:08]} 20. Bxf1 {[%clk 0:00:45]}  Qd6 {[%clk 0:00:54]} 21. Be3 {[%clk 0:00:31]}  Nxe3 {[%clk 0:00:54]} 22. Qxe3 {[%clk 0:00:32]}  Rab8 {[%clk 0:00:47]} 23. Nxa5 {[%clk 0:00:22]}  Rxb6 {[%clk 0:00:46]} 24. Re1 {[%clk 0:00:18]}  Rxb2 {[%clk 0:00:41]} 25. Qxe6+ {[%clk 0:00:15]}  Qxe6 {[%clk 0:00:41]} 26. Rxe6 {[%clk 0:00:15]}  Rb1 {[%clk 0:00:41]} 0-1


[Site "https://www.chess.com"]

[Event "Early Titled Tuesday Blitz | February 8 2022"]
[White "Baches Garcia, Guillermo"]
[Black "Osmonbekov, Talaibek"]
[WhiteFideId "2209764"]
[BlackFideId "2017253"]
[WhiteElo "2451"]
[BlackElo "2135"]
[Result "1-0"]
[Round "08"]
[TimeControl "180+1"]
[Date "2022.02.08"]
[WhiteClock "0:00:32"]
[BlackClock "0:00:03"]

1. e4 {[%clk 0:03:00]}  c5 {[%clk 0:02:59]} 2. Nf3 {[%clk 0:03:01]}  d6 {[%clk 0:02:59]} 3. d4 {[%clk 0:03:01]}  cxd4 {[%clk 0:03:00]} 4. Qxd4 {[%clk 0:03:01]}  Nc6 {[%clk 0:02:58]} 5. Bb5 {[%clk 0:03:00]}  Bd7 {[%clk 0:02:59]} 6. Qd3 {[%clk 0:03:01]}  Nf6 {[%clk 0:02:55]} 7. c4 {[%clk 0:03:00]}  g6 {[%clk 0:02:44]} 8. Nc3 {[%clk 0:02:59]}  Bg7 {[%clk 0:02:45]} 9. O-O {[%clk 0:02:59]}  O-O {[%clk 0:02:45]} 10. h3 {[%clk 0:02:59]}  Rc8 {[%clk 0:02:40]} 11. Be3 {[%clk 0:02:59]}  a6 {[%clk 0:02:40]} 12. Bxc6 {[%clk 0:02:58]}  Bxc6 {[%clk 0:02:38]} 13. Nd4 {[%clk 0:02:58]}  Nd7 {[%clk 0:02:34]} 14. Rac1 {[%clk 0:02:54]}  Nc5 {[%clk 0:02:33]} 15. Qc2 {[%clk 0:02:54]}  Ne6 {[%clk 0:02:14]} 16. Nxe6 {[%clk 0:02:47]}  fxe6 {[%clk 0:02:14]} 17. f3 {[%clk 0:02:36]}  b5 {[%clk 0:02:05]} 18. cxb5 {[%clk 0:02:28]}  axb5 {[%clk 0:02:06]} 19. Qd2 {[%clk 0:02:26]}  Qa5 {[%clk 0:01:57]} 20. a3 {[%clk 0:02:07]}  b4 {[%clk 0:01:37]} 21. Na2 {[%clk 0:01:58]}  Bb5 {[%clk 0:01:18]} 22. Rfd1 {[%clk 0:01:45]}  Ba4 {[%clk 0:01:16]} 23. Re1 {[%clk 0:01:35]}  Rb8 {[%clk 0:00:45]} 24. Nxb4 {[%clk 0:01:29]}  Bb3 {[%clk 0:00:42]} 25. Bd4 {[%clk 0:01:18]}  e5 {[%clk 0:00:41]} 26. Be3 {[%clk 0:01:07]}  Ba4 {[%clk 0:00:38]} 27. Rc3 {[%clk 0:01:01]}  Rfc8 {[%clk 0:00:24]} 28. Rec1 {[%clk 0:01:00]}  Rxc3 {[%clk 0:00:22]} 29. Qxc3 {[%clk 0:00:59]}  Bf8 {[%clk 0:00:11]} 30. Qc7 {[%clk 0:00:51]}  Qxc7 {[%clk 0:00:12]} 31. Rxc7 {[%clk 0:00:52]}  e6 {[%clk 0:00:13]} 32. Bd2 {[%clk 0:00:44]}  d5 {[%clk 0:00:10]} 33. exd5 {[%clk 0:00:44]}  Bxb4 {[%clk 0:00:10]} 34. Bxb4 {[%clk 0:00:44]}  exd5 {[%clk 0:00:10]} 35. Kf2 {[%clk 0:00:42]}  e4 {[%clk 0:00:08]} 36. fxe4 {[%clk 0:00:39]}  dxe4 {[%clk 0:00:07]} 37. Bc3 {[%clk 0:00:40]}  Rf8+ {[%clk 0:00:02]} 38. Ke3 {[%clk 0:00:39]}  Rf7 {[%clk 0:00:02]} 39. Rxf7 {[%clk 0:00:33]}  Kxf7 {[%clk 0:00:03]} 40. Kxe4 {[%clk 0:00:32]}  Bc6+ {[%clk 0:00:03]} 41. Ke5 {[%clk 0:00:32]}  Bxg2 {[%clk 0:00:03]} 42. h4 {[%clk 0:00:33]}  h6 {[%clk 0:00:03]} 43. Bd2 {[%clk 0:00:32]} 1-0


[Site "https://www.chess.com"]

[Event "Early Titled Tuesday Blitz | February 8 2022"]
[White "Berezin, Viktor"]
[Black "Warchol, Kamil"]
[WhiteFideId "14107872"]
[BlackFideId "21858241"]
[WhiteElo "2310"]
[BlackElo "1905"]
[Result "0-1"]
[Round "08"]
[TimeControl "180+1"]
[Date "2022.02.08"]
[WhiteClock "0:00:02"]
[BlackClock "0:00:06"]

1. d4 {[%clk 0:02:58]}  d6 {[%clk 0:02:58]} 2. c4 {[%clk 0:02:57]}  e5 {[%clk 0:02:57]} 3. e3 {[%clk 0:02:53]}  Nf6 {[%clk 0:02:54]} 4. Nc3 {[%clk 0:02:53]}  Nbd7 {[%clk 0:02:53]} 5. Bd3 {[%clk 0:02:47]}  Be7 {[%clk 0:02:53]} 6. Nge2 {[%clk 0:02:46]}  O-O {[%clk 0:02:52]} 7. O-O {[%clk 0:02:42]}  c6 {[%clk 0:02:52]} 8. Qc2 {[%clk 0:02:37]}  h6 {[%clk 0:02:51]} 9. f4 {[%clk 0:02:32]}  Qc7 {[%clk 0:02:31]} 10. Ng3 {[%clk 0:02:25]}  Re8 {[%clk 0:02:28]} 11. b3 {[%clk 0:02:07]}  Bf8 {[%clk 0:02:24]} 12. Bb2 {[%clk 0:02:07]}  Ng4 {[%clk 0:02:16]} 13. Rae1 {[%clk 0:01:52]}  Ndf6 {[%clk 0:01:47]} 14. h3 {[%clk 0:01:48]}  exf4 {[%clk 0:01:44]} 15. exf4 {[%clk 0:01:37]}  Ne3 {[%clk 0:01:42]} 16. Qc1 {[%clk 0:01:30]}  Nxf1 {[%clk 0:01:40]} 17. Rxf1 {[%clk 0:01:30]}  Bd7 {[%clk 0:01:32]} 18. f5 {[%clk 0:01:24]}  d5 {[%clk 0:01:32]} 19. Nce2 {[%clk 0:01:13]}  Bd6 {[%clk 0:01:21]} 20. Rf3 {[%clk 0:01:01]}  Ne4 {[%clk 0:01:06]} 21. Nh5 {[%clk 0:00:49]}  Ng5 {[%clk 0:00:55]} 22. Rf1 {[%clk 0:00:41]}  c5 {[%clk 0:00:46]} 23. f6 {[%clk 0:00:40]}  g6 {[%clk 0:00:42]} 24. Nhf4 {[%clk 0:00:36]}  dxc4 {[%clk 0:00:29]} 25. Bxc4 {[%clk 0:00:29]}  cxd4 {[%clk 0:00:28]} 26. Nxg6 {[%clk 0:00:28]}  d3 {[%clk 0:00:25]} 27. Nef4 {[%clk 0:00:25]}  b5 {[%clk 0:00:18]} 28. Nd5 {[%clk 0:00:20]}  Qc5+ {[%clk 0:00:17]} 29. Kh1 {[%clk 0:00:20]}  bxc4 {[%clk 0:00:17]} 30. bxc4 {[%clk 0:00:18]}  fxg6 {[%clk 0:00:14]} 31. Qc3 {[%clk 0:00:13]}  Nf7 {[%clk 0:00:12]} 32. Qxd3 {[%clk 0:00:13]}  Bf5 {[%clk 0:00:11]} 33. Qd2 {[%clk 0:00:08]}  Qxc4 {[%clk 0:00:10]} 34. Rc1 {[%clk 0:00:06]}  Qe4 {[%clk 0:00:09]} 35. Nc3 {[%clk 0:00:04]}  Qe3 {[%clk 0:00:07]} 36. Qd5 {[%clk 0:00:02]}  Qxc1+ {[%clk 0:00:06]} 37. Bxc1 {[%clk 0:00:02]}  Re1# {[%clk 0:00:06]} 0-1


[Site "https://www.chess.com"]

[Event "Early Titled Tuesday Blitz | February 8 2022"]
[White "Blokhin, Sofia"]
[Black "Mayaud, Raphael"]
[WhiteFideId "4508190"]
[BlackFideId "627151"]
[WhiteElo "1762"]
[BlackElo "2191"]
[Result "0-1"]
[Round "08"]
[TimeControl "180+1"]
[Date "2022.02.08"]
[WhiteClock "0:00:16"]
[BlackClock "0:00:39"]

1. e4 {[%clk 0:03:00]}  d5 {[%clk 0:02:55]} 2. exd5 {[%clk 0:02:59]}  Qxd5 {[%clk 0:02:55]} 3. Nc3 {[%clk 0:02:59]}  Qa5 {[%clk 0:02:55]} 4. Nf3 {[%clk 0:02:59]}  c6 {[%clk 0:02:55]} 5. d4 {[%clk 0:02:59]}  Nf6 {[%clk 0:02:55]} 6. Bd2 {[%clk 0:02:57]}  Bf5 {[%clk 0:02:55]} 7. Be2 {[%clk 0:02:52]}  Qc7 {[%clk 0:02:52]} 8. O-O {[%clk 0:02:50]}  e6 {[%clk 0:02:52]} 9. Nh4 {[%clk 0:02:44]}  Bg6 {[%clk 0:02:52]} 10. Nxg6 {[%clk 0:02:43]}  hxg6 {[%clk 0:02:52]} 11. g3 {[%clk 0:02:44]}  Nbd7 {[%clk 0:02:51]} 12. f4 {[%clk 0:02:38]}  O-O-O {[%clk 0:02:50]} 13. a4 {[%clk 0:02:36]}  Nb6 {[%clk 0:02:20]} 14. a5 {[%clk 0:02:31]}  Nbd5 {[%clk 0:02:20]} 15. Nxd5 {[%clk 0:02:27]}  exd5 {[%clk 0:02:17]} 16. a6 {[%clk 0:02:23]}  b6 {[%clk 0:02:17]} 17. b4 {[%clk 0:02:05]}  Ne4 {[%clk 0:02:07]} 18. Be1 {[%clk 0:02:02]}  b5 {[%clk 0:01:55]} 19. Ra5 {[%clk 0:01:40]}  Nd6 {[%clk 0:01:35]} 20. Bg4+ {[%clk 0:01:32]}  f5 {[%clk 0:01:35]} 21. Be2 {[%clk 0:01:28]}  Be7 {[%clk 0:01:34]} 22. Rf3 {[%clk 0:01:17]}  Bf6 {[%clk 0:01:33]} 23. Bf2 {[%clk 0:01:14]}  Rhe8 {[%clk 0:01:24]} 24. Qf1 {[%clk 0:01:04]}  Nc4 {[%clk 0:01:15]} 25. Bxc4 {[%clk 0:00:52]}  dxc4 {[%clk 0:01:15]} 26. c3 {[%clk 0:00:48]}  Re4 {[%clk 0:01:14]} 27. Ra1 {[%clk 0:00:39]}  Rde8 {[%clk 0:01:08]} 28. Kg2 {[%clk 0:00:37]}  Qd7 {[%clk 0:01:06]} 29. d5 {[%clk 0:00:33]}  cxd5 {[%clk 0:01:01]} 30. Qg1 {[%clk 0:00:29]}  Kb8 {[%clk 0:00:59]} 31. Ra5 {[%clk 0:00:22]}  d4 {[%clk 0:00:47]} 32. cxd4 {[%clk 0:00:20]}  Bxd4 {[%clk 0:00:47]} 33. Bxd4 {[%clk 0:00:16]}  Rxd4 {[%clk 0:00:44]} 34. Rf2 {[%clk 0:00:16]}  Qd5+ {[%clk 0:00:40]} 35. Kh3 {[%clk 0:00:16]}  Rh8# {[%clk 0:00:39]} 0-1


[Site "https://www.chess.com"]

[Event "Early Titled Tuesday Blitz | February 8 2022"]
[White "Borisova, Ekaterina"]
[Black "Vakhlamov, Igor L."]
[WhiteFideId "34124184"]
[BlackFideId "24126748"]
[WhiteElo "2034"]
[BlackElo "2401"]
[Result "0-1"]
[Round "08"]
[TimeControl "180+1"]
[Date "2022.02.08"]
[WhiteClock "0:00:04"]
[BlackClock "0:00:11"]

1. d4 {[%clk 0:03:00]}  d5 {[%clk 0:02:58]} 2. c4 {[%clk 0:03:01]}  c6 {[%clk 0:02:58]} 3. cxd5 {[%clk 0:03:01]}  cxd5 {[%clk 0:02:59]} 4. Bf4 {[%clk 0:03:02]}  Nc6 {[%clk 0:02:59]} 5. e3 {[%clk 0:03:01]}  Nf6 {[%clk 0:03:00]} 6. Nc3 {[%clk 0:03:01]}  a6 {[%clk 0:03:00]} 7. Rc1 {[%clk 0:03:01]}  Bf5 {[%clk 0:02:51]} 8. Nf3 {[%clk 0:03:00]}  e6 {[%clk 0:02:51]} 9. Qb3 {[%clk 0:03:00]}  Bb4 {[%clk 0:01:43]} 10. Ne5 {[%clk 0:03:00]}  Ne4 {[%clk 0:01:17]} 11. Nxc6 {[%clk 0:02:53]}  Bxc3+ {[%clk 0:01:17]} 12. bxc3 {[%clk 0:02:44]}  bxc6 {[%clk 0:01:17]} 13. f3 {[%clk 0:02:41]}  Nd6 {[%clk 0:01:14]} 14. Qb4 {[%clk 0:02:34]}  Nc8 {[%clk 0:00:45]} 15. Qb7 {[%clk 0:02:32]}  Ne7 {[%clk 0:00:45]} 16. h4 {[%clk 0:02:12]}  h5 {[%clk 0:00:43]} 17. Be2 {[%clk 0:01:48]}  O-O {[%clk 0:00:42]} 18. Kf2 {[%clk 0:01:14]}  Ng6 {[%clk 0:00:41]} 19. Bg3 {[%clk 0:01:05]}  Qa5 {[%clk 0:00:41]} 20. Qxc6 {[%clk 0:00:53]}  Rac8 {[%clk 0:00:34]} 21. Qxa6 {[%clk 0:00:48]}  Qxa6 {[%clk 0:00:31]} 22. Bxa6 {[%clk 0:00:49]}  Ra8 {[%clk 0:00:32]} 23. Be2 {[%clk 0:00:34]}  Rxa2 {[%clk 0:00:31]} 24. Rhe1 {[%clk 0:00:33]}  Rfa8 {[%clk 0:00:30]} 25. Kg1 {[%clk 0:00:22]}  Ne7 {[%clk 0:00:21]} 26. Bf1 {[%clk 0:00:21]}  Nc6 {[%clk 0:00:16]} 27. e4 {[%clk 0:00:18]}  Bg6 {[%clk 0:00:16]} 28. Bf2 {[%clk 0:00:12]}  Na5 {[%clk 0:00:14]} 29. Ra1 {[%clk 0:00:08]}  Nb3 {[%clk 0:00:15]} 30. Rxa2 {[%clk 0:00:08]}  Rxa2 {[%clk 0:00:15]} 31. c4 {[%clk 0:00:06]}  dxe4 {[%clk 0:00:11]} 32. fxe4 {[%clk 0:00:06]}  Nd2 {[%clk 0:00:12]} 33. Bd3 {[%clk 0:00:05]}  Ra3 {[%clk 0:00:11]} 34. Re3 {[%clk 0:00:05]}  Ra1+ {[%clk 0:00:08]} 35. Kh2 {[%clk 0:00:05]}  Nb3 {[%clk 0:00:09]} 36. Rg3 {[%clk 0:00:04]}  Rc1 {[%clk 0:00:07]} 37. c5 {[%clk 0:00:04]}  e5 {[%clk 0:00:07]} 38. dxe5 {[%clk 0:00:02]}  Nxc5 {[%clk 0:00:07]} 39. Be2 {[%clk 0:00:03]}  Nxe4 {[%clk 0:00:07]} 40. Rf3 {[%clk 0:00:01]}  Rc2 {[%clk 0:00:07]} 41. Re3 {[%clk 0:00:01]}  Nxf2 {[%clk 0:00:07]} 42. Bf3 {[%clk 0:00:02]}  Ng4+ {[%clk 0:00:07]} 43. Bxg4 {[%clk 0:00:03]}  hxg4 {[%clk 0:00:08]} 44. Kg3 {[%clk 0:00:04]}  Rc4 {[%clk 0:00:08]} 45. e6 {[%clk 0:00:04]}  fxe6 {[%clk 0:00:09]} 46. Rxe6 {[%clk 0:00:04]}  Kh7 {[%clk 0:00:10]} 47. Rb6 {[%clk 0:00:05]}  Bf5 {[%clk 0:00:10]} 48. Rb5 {[%clk 0:00:05]}  g6 {[%clk 0:00:10]} 49. Rb8 {[%clk 0:00:06]}  Kg7 {[%clk 0:00:10]} 50. Rb7+ {[%clk 0:00:06]}  Kf6 {[%clk 0:00:10]} 51. Rb8 {[%clk 0:00:07]}  Be6 {[%clk 0:00:11]} 52. Rf8+ {[%clk 0:00:06]}  Ke5 {[%clk 0:00:11]} 53. Re8 {[%clk 0:00:04]}  Rc3+ {[%clk 0:00:11]} 54. Kh2 {[%clk 0:00:04]}  g3+ {[%clk 0:00:11]} 0-1


[Site "https://www.chess.com"]

[Event "Early Titled Tuesday Blitz | February 8 2022"]
[White "Bortnyk, Olexandr"]
[Black "Jumabayev, Rinat"]
[WhiteFideId "14120828"]
[BlackFideId "13702661"]
[WhiteElo "2723"]
[BlackElo "2561"]
[Result "0-1"]
[Round "08"]
[TimeControl "180+1"]
[Date "2022.02.08"]
[WhiteClock "0:00:07"]
[BlackClock "0:01:35"]

1. e4 {[%clk 0:02:56]}  e6 {[%clk 0:03:00]} 2. d4 {[%clk 0:02:56]}  d5 {[%clk 0:03:00]} 3. Nc3 {[%clk 0:02:57]}  Nf6 {[%clk 0:03:00]} 4. Bg5 {[%clk 0:02:57]}  dxe4 {[%clk 0:02:57]} 5. Nxe4 {[%clk 0:02:58]}  Be7 {[%clk 0:02:58]} 6. Bxf6 {[%clk 0:02:58]}  gxf6 {[%clk 0:02:58]} 7. Nf3 {[%clk 0:02:58]}  a6 {[%clk 0:02:53]} 8. Qd3 {[%clk 0:02:58]}  f5 {[%clk 0:02:48]} 9. Nc3 {[%clk 0:02:58]}  b5 {[%clk 0:02:48]} 10. O-O-O {[%clk 0:02:58]}  Bb7 {[%clk 0:02:46]} 11. Qe3 {[%clk 0:02:54]}  b4 {[%clk 0:02:36]} 12. Ne2 {[%clk 0:02:52]}  Qd6 {[%clk 0:02:34]} 13. Nf4 {[%clk 0:02:13]}  Nd7 {[%clk 0:02:34]} 14. Bc4 {[%clk 0:02:01]}  O-O-O {[%clk 0:02:29]} 15. Nd3 {[%clk 0:01:39]}  Nb6 {[%clk 0:02:13]} 16. Nde5 {[%clk 0:01:18]}  Nxc4 {[%clk 0:02:11]} 17. Nxc4 {[%clk 0:01:19]}  Qd5 {[%clk 0:02:11]} 18. Qb3 {[%clk 0:01:18]}  Qb5 {[%clk 0:02:07]} 19. Nce5 {[%clk 0:01:13]}  Bd5 {[%clk 0:02:06]} 20. c4 {[%clk 0:01:07]}  bxc3 {[%clk 0:02:06]} 21. Qxb5 {[%clk 0:01:08]}  axb5 {[%clk 0:02:06]} 22. Nxf7 {[%clk 0:01:08]}  Rhg8 {[%clk 0:01:44]} 23. Nxd8 {[%clk 0:01:06]}  Rxg2 {[%clk 0:01:45]} 24. Nxe6 {[%clk 0:00:44]}  Rxf2 {[%clk 0:01:39]} 25. bxc3 {[%clk 0:00:07]}  Ba3+ {[%clk 0:01:34]} 26. Kb1 {[%clk 0:00:07]}  Be4+ {[%clk 0:01:35]} 0-1


[Site "https://www.chess.com"]

[Event "Early Titled Tuesday Blitz | February 8 2022"]
[White "Bruned, Yvain"]
[Black "Samarth, J Rao"]
[WhiteFideId "2250292"]
[BlackFideId "46652370"]
[WhiteElo "2073"]
[BlackElo "1514"]
[Result "1-0"]
[Round "08"]
[TimeControl "180+1"]
[Date "2022.02.08"]
[WhiteClock "0:00:46"]
[BlackClock "0:00:10"]

1. b3 {[%clk 0:03:00]}  e5 {[%clk 0:02:29]} 2. Bb2 {[%clk 0:02:59]}  Nc6 {[%clk 0:02:30]} 3. e3 {[%clk 0:03:00]}  g6 {[%clk 0:02:28]} 4. Bb5 {[%clk 0:02:36]}  Bg7 {[%clk 0:02:28]} 5. Nf3 {[%clk 0:02:34]}  d6 {[%clk 0:02:27]} 6. Bxc6+ {[%clk 0:02:28]}  bxc6 {[%clk 0:01:25]} 7. d4 {[%clk 0:02:24]}  e4 {[%clk 0:01:23]} 8. Nfd2 {[%clk 0:02:24]}  d5 {[%clk 0:01:24]} 9. c4 {[%clk 0:02:24]}  Ne7 {[%clk 0:01:23]} 10. Nc3 {[%clk 0:02:22]}  O-O {[%clk 0:01:23]} 11. Qc2 {[%clk 0:02:20]}  Be6 {[%clk 0:01:23]} 12. Na4 {[%clk 0:02:16]}  Rb8 {[%clk 0:01:21]} 13. Nc5 {[%clk 0:02:15]}  Bc8 {[%clk 0:01:22]} 14. Ba3 {[%clk 0:02:07]}  Re8 {[%clk 0:01:21]} 15. Rc1 {[%clk 0:02:04]}  Nf5 {[%clk 0:01:21]} 16. g3 {[%clk 0:02:03]}  Nd6 {[%clk 0:01:20]} 17. cxd5 {[%clk 0:01:57]}  cxd5 {[%clk 0:01:21]} 18. Na4 {[%clk 0:01:57]}  Bf8 {[%clk 0:01:02]} 19. Bc5 {[%clk 0:01:39]}  Rb7 {[%clk 0:01:00]} 20. Nb1 {[%clk 0:01:33]}  Bd7 {[%clk 0:00:59]} 21. Nbc3 {[%clk 0:01:33]}  Qf6 {[%clk 0:00:53]} 22. Qd1 {[%clk 0:01:24]}  c6 {[%clk 0:00:49]} 23. Ba3 {[%clk 0:01:20]}  h5 {[%clk 0:00:47]} 24. h4 {[%clk 0:01:18]}  Bg4 {[%clk 0:00:47]} 25. Qd2 {[%clk 0:01:17]}  Bf3 {[%clk 0:00:47]} 26. Rg1 {[%clk 0:01:16]}  Qf5 {[%clk 0:00:39]} 27. Ne2 {[%clk 0:01:12]}  Qh3 {[%clk 0:00:38]} 28. Nf4 {[%clk 0:01:12]}  Qh2 {[%clk 0:00:38]} 29. Rf1 {[%clk 0:01:12]}  Nf5 {[%clk 0:00:35]} 30. Bxf8 {[%clk 0:01:09]}  Rxf8 {[%clk 0:00:31]} 31. Nc5 {[%clk 0:01:10]}  Rc7 {[%clk 0:00:30]} 32. Qc2 {[%clk 0:01:03]}  g5 {[%clk 0:00:27]} 33. hxg5 {[%clk 0:01:02]}  h4 {[%clk 0:00:27]} 34. gxh4 {[%clk 0:01:01]}  Nxh4 {[%clk 0:00:26]} 35. Kd2 {[%clk 0:01:01]}  Bg2 {[%clk 0:00:22]} 36. Nxg2 {[%clk 0:00:52]}  Nf3+ {[%clk 0:00:22]} 37. Kc3 {[%clk 0:00:53]}  Qxg2 {[%clk 0:00:20]} 38. Qe2 {[%clk 0:00:51]}  Qxg5 {[%clk 0:00:20]} 39. Rh1 {[%clk 0:00:51]}  f5 {[%clk 0:00:19]} 40. Ne6 {[%clk 0:00:50]}  Qg6 {[%clk 0:00:18]} 41. Nxc7 {[%clk 0:00:49]}  c5 {[%clk 0:00:16]} 42. Kb2 {[%clk 0:00:45]}  cxd4 {[%clk 0:00:13]} 43. exd4 {[%clk 0:00:45]}  Qg7 {[%clk 0:00:14]} 44. Qe3 {[%clk 0:00:43]}  Nxd4 {[%clk 0:00:14]} 45. Qc3 {[%clk 0:00:42]}  Rc8 {[%clk 0:00:11]} 46. Rhd1 {[%clk 0:00:40]}  Rxc7 {[%clk 0:00:10]} 47. Qxd4 {[%clk 0:00:40]}  Rxc1 {[%clk 0:00:09]} 48. Kxc1 {[%clk 0:00:41]}  Qc7+ {[%clk 0:00:09]} 49. Kb2 {[%clk 0:00:41]}  Qf4 {[%clk 0:00:09]} 50. Qxd5+ {[%clk 0:00:41]}  Kg7 {[%clk 0:00:09]} 51. Qd4+ {[%clk 0:00:41]}  Kg6 {[%clk 0:00:09]} 52. Qe3 {[%clk 0:00:41]}  Qxe3 {[%clk 0:00:09]} 53. fxe3 {[%clk 0:00:42]}  Kg5 {[%clk 0:00:09]} 54. Rf1 {[%clk 0:00:43]}  Kg4 {[%clk 0:00:09]} 55. Rf4+ {[%clk 0:00:43]}  Kg5 {[%clk 0:00:10]} 56. Kc3 {[%clk 0:00:44]}  a5 {[%clk 0:00:10]} 57. Kd4 {[%clk 0:00:45]}  a4 {[%clk 0:00:10]} 58. bxa4 {[%clk 0:00:46]} 1-0


[Site "https://www.chess.com"]

[Event "Early Titled Tuesday Blitz | February 8 2022"]
[White "Bugayev, Vladimir"]
[Black "Sharapov, Evgeny"]
[WhiteFideId "30901480"]
[BlackFideId "14103133"]
[WhiteElo "2372"]
[BlackElo "2367"]
[Result "0-1"]
[Round "08"]
[TimeControl "180+1"]
[Date "2022.02.08"]
[WhiteClock "0:01:11"]
[BlackClock "0:01:39"]

1. e4 {[%clk 0:03:00]}  c5 {[%clk 0:02:59]} 2. Nc3 {[%clk 0:03:01]}  Nc6 {[%clk 0:02:58]} 3. Bb5 {[%clk 0:03:01]}  Nd4 {[%clk 0:02:57]} 4. Nf3 {[%clk 0:03:01]}  g6 {[%clk 0:02:55]} 5. Nxd4 {[%clk 0:03:00]}  cxd4 {[%clk 0:02:54]} 6. Ne2 {[%clk 0:03:00]}  Bg7 {[%clk 0:02:53]} 7. O-O {[%clk 0:03:01]}  Qb6 {[%clk 0:02:47]} 8. Ba4 {[%clk 0:02:54]}  Nf6 {[%clk 0:02:44]} 9. d3 {[%clk 0:02:54]}  O-O {[%clk 0:02:43]} 10. c3 {[%clk 0:02:54]}  dxc3 {[%clk 0:02:42]} 11. bxc3 {[%clk 0:02:54]}  d6 {[%clk 0:02:37]} 12. h3 {[%clk 0:02:50]}  Bd7 {[%clk 0:02:26]} 13. Bb3 {[%clk 0:02:44]}  Rac8 {[%clk 0:02:25]} 14. Be3 {[%clk 0:02:20]}  Qa5 {[%clk 0:02:25]} 15. Bd4 {[%clk 0:02:19]}  e5 {[%clk 0:02:16]} 16. Be3 {[%clk 0:02:16]}  d5 {[%clk 0:02:16]} 17. f3 {[%clk 0:02:05]}  Be6 {[%clk 0:02:08]} 18. Kh1 {[%clk 0:01:53]}  Rfd8 {[%clk 0:02:08]} 19. Bg5 {[%clk 0:01:42]}  h6 {[%clk 0:02:07]} 20. Bd2 {[%clk 0:01:42]}  Qa6 {[%clk 0:02:05]} 21. Be3 {[%clk 0:01:32]}  dxe4 {[%clk 0:02:03]} 22. fxe4 {[%clk 0:01:28]}  Rxd3 {[%clk 0:01:56]} 23. Qc1 {[%clk 0:01:25]}  Nxe4 {[%clk 0:01:53]} 24. Bxe6 {[%clk 0:01:23]}  Qxe6 {[%clk 0:01:52]} 25. Bxh6 {[%clk 0:01:19]}  Rxh3+ {[%clk 0:01:44]} 26. gxh3 {[%clk 0:01:15]}  Qxh3+ {[%clk 0:01:43]} 27. Kg1 {[%clk 0:01:15]}  Bxh6 {[%clk 0:01:43]} 28. Qe1 {[%clk 0:01:11]}  Be3+ {[%clk 0:01:39]} 0-1


[Site "https://www.chess.com"]